[Event "*** Titled Tuesday Blitz"]
[Site "Chess.com"]
[Date "2020.12.01"]
[Round "3"]
[White "Chernov_Mikhail"]
[Black "nochewycandy"]
[Result "0-1"]
[WhiteElo "2306"]
[BlackElo "2523"]
[TimeControl "180+1"]
[EndTime "10:27:48 PST"]
[Termination "nochewycandy won by resignation"]

1. e4 {[%clk 0:03:00.9]} 1... g6 {[%clk 0:02:58.5]} 2. d4 {[%clk 0:03:00.7]}
2... Bg7 {[%clk 0:02:58.8]} 3. Nc3 {[%clk 0:03:01.4]} 3... d6 {[%clk 0:02:59.1]}
4. Be3 {[%clk 0:03:01.7]} 4... a6 {[%clk 0:02:57.4]} 5. Qd2 {[%clk 0:03:01.9]}
5... b5 {[%clk 0:02:57]} 6. a4 {[%clk 0:03:02.5]} 6... b4 {[%clk 0:02:57.1]} 7.
Nd1 {[%clk 0:03:03.1]} 7... Bb7 {[%clk 0:02:55.6]} 8. Bd3 {[%clk 0:03:02.5]}
8... a5 {[%clk 0:02:54]} 9. c3 {[%clk 0:03:02.5]} 9... bxc3 {[%clk 0:02:51.5]}
10. bxc3 {[%clk 0:03:03.4]} 10... Nf6 {[%clk 0:02:50.6]} 11. f3 {[%clk
0:03:03.9]} 11... O-O {[%clk 0:02:50.4]} 12. Ne2 {[%clk 0:03:04.8]} 12... e5
{[%clk 0:02:49.9]} 13. O-O {[%clk 0:03:05.7]} 13... c6 {[%clk 0:02:45.7]} 14.
Nf2 {[%clk 0:03:02.2]} 14... Ba6 {[%clk 0:02:44.8]} 15. Bh6 {[%clk 0:02:58.1]}
15... Bxd3 {[%clk 0:02:44.1]} 16. Nxd3 {[%clk 0:02:59]} 16... Nbd7 {[%clk
0:02:44.1]} 17. Bxg7 {[%clk 0:02:58.5]} 17... Kxg7 {[%clk 0:02:44.3]} 18. f4
{[%clk 0:02:55.5]} 18... Nxe4 {[%clk 0:02:42.1]} 19. Qe3 {[%clk 0:02:54.1]}
19... f5 {[%clk 0:02:40.7]} 20. fxe5 {[%clk 0:02:50.6]} 20... dxe5 {[%clk
0:02:38.9]} 21. dxe5 {[%clk 0:02:37]} 21... Qe7 {[%clk 0:02:33.8]} 22. Rab1
{[%clk 0:02:18.7]} 22... Nxe5 {[%clk 0:02:11.3]} 23. Nxe5 {[%clk 0:02:10.3]}
23... Qxe5 {[%clk 0:02:11.2]} 24. Rb7+ {[%clk 0:02:11.2]} 24... Rf7 {[%clk
0:02:05]} 25. Rxf7+ {[%clk 0:01:50.5]} 25... Kxf7 {[%clk 0:02:05.9]} 26. Rb1
{[%clk 0:01:51]} 26... Re8 {[%clk 0:01:54.2]} 27. Rb7+ {[%clk 0:01:32.5]} 27...
Re7 {[%clk 0:01:53.1]} 28. Rb6 {[%clk 0:01:21.4]} 28... Rd7 {[%clk 0:01:48.5]}
29. Nd4 {[%clk 0:00:40.1]} 29... c5 {[%clk 0:01:35.5]} 30. Nf3 {[%clk
0:00:39.4]} 30... Rd1+ {[%clk 0:01:32.4]} 31. Ne1 {[%clk 0:00:40]} 31... Qxc3
{[%clk 0:01:24.4]} 32. Rb7+ {[%clk 0:00:39.2]} 32... Ke6 {[%clk 0:01:24.4]} 33.
Qxc3 {[%clk 0:00:38.5]} 33... Nxc3 {[%clk 0:01:24.5]} 34. Kf2 {[%clk 0:00:39.4]}
34... Ne4+ {[%clk 0:01:24.6]} 35. Ke2 {[%clk 0:00:39.7]} 35... Rd2+ {[%clk
0:01:23.8]} 36. Ke3 {[%clk 0:00:37.7]} 36... Ra2 {[%clk 0:01:20.7]} 37. Rxh7
{[%clk 0:00:31.5]} 37... Rxa4 {[%clk 0:01:20]} 38. Rg7 {[%clk 0:00:32]} 38...
Kf6 {[%clk 0:01:20.2]} 39. Rc7 {[%clk 0:00:29.4]} 39... Ra3+ {[%clk 0:01:20.7]}
40. Ke2 {[%clk 0:00:27.3]} 40... a4 {[%clk 0:01:19.9]} 41. Nd3 {[%clk
0:00:26.9]} 41... Rc3 {[%clk 0:01:17.7]} 42. Rc6+ {[%clk 0:00:22.2]} 42... Kg7
{[%clk 0:01:16.8]} 43. Nf4 {[%clk 0:00:19.4]} 43... g5 {[%clk 0:01:14]} 44. Ne6+
{[%clk 0:00:18.5]} 44... Kf7 {[%clk 0:01:13.8]} 45. Nc7 {[%clk 0:00:15.6]} 45...
a3 {[%clk 0:01:07.5]} 46. Nb5 {[%clk 0:00:15.7]} 46... Rc2+ {[%clk 0:01:01.9]}
47. Ke3 {[%clk 0:00:15.7]} 47... a2 {[%clk 0:01:01.2]} 48. Ra6 {[%clk
0:00:15.3]} 48... Rxg2 {[%clk 0:01:00.5]} 0-1

[Event "*** Titled Tuesday Blitz"]
[Site "Chess.com"]
[Date "2020.12.01"]
[Round "3"]
[White "Beltraxtor"]
[Black "snowlord"]
[Result "0-1"]
[WhiteElo "2550"]
[BlackElo "2811"]
[TimeControl "180+1"]
[EndTime "10:27:50 PST"]
[Termination "snowlord won by resignation"]

1. e4 {[%clk 0:03:00.9]} 1... e5 {[%clk 0:02:58.2]} 2. Nf3 {[%clk 0:03:00.8]}
2... Nc6 {[%clk 0:02:58.7]} 3. Bb5 {[%clk 0:03:01.3]} 3... a6 {[%clk 0:02:58.6]}
4. Ba4 {[%clk 0:03:01.9]} 4... Nf6 {[%clk 0:02:58.5]} 5. O-O {[%clk 0:03:02.4]}
5... Be7 {[%clk 0:02:58.1]} 6. Re1 {[%clk 0:03:02.7]} 6... b5 {[%clk 0:02:57.6]}
7. Bb3 {[%clk 0:03:02.9]} 7... O-O {[%clk 0:02:57.7]} 8. h3 {[%clk 0:03:02.5]}
8... d6 {[%clk 0:02:52.9]} 9. c3 {[%clk 0:03:02.3]} 9... Nb8 {[%clk 0:02:52.9]}
10. d4 {[%clk 0:03:01.4]} 10... Nbd7 {[%clk 0:02:53.3]} 11. c4 {[%clk 0:03:02]}
11... c6 {[%clk 0:02:51.6]} 12. Qc2 {[%clk 0:03:01.5]} 12... Bb7 {[%clk
0:02:38.5]} 13. dxe5 {[%clk 0:03:01.5]} 13... Nxe5 {[%clk 0:02:32.7]} 14. Nxe5
{[%clk 0:03:00.4]} 14... dxe5 {[%clk 0:02:33.6]} 15. Be3 {[%clk 0:03:01]} 15...
Qa5 {[%clk 0:02:02.4]} 16. Nc3 {[%clk 0:02:43.1]} 16... b4 {[%clk 0:02:02.1]}
17. Ne2 {[%clk 0:02:38.9]} 17... c5 {[%clk 0:02:02.3]} 18. Ng3 {[%clk
0:02:39.4]} 18... g6 {[%clk 0:02:02.3]} 19. f4 {[%clk 0:02:29.3]} 19... Qc7
{[%clk 0:01:57.7]} 20. Rf1 {[%clk 0:02:16.8]} 20... exf4 {[%clk 0:01:53.3]} 21.
Bxf4 {[%clk 0:02:12.5]} 21... Bd6 {[%clk 0:01:53.9]} 22. Qf2 {[%clk 0:01:25]}
22... Bxf4 {[%clk 0:01:48.3]} 23. Qxf4 {[%clk 0:01:24]} 23... Qxf4 {[%clk
0:01:49.2]} 24. Rxf4 {[%clk 0:01:24.6]} 24... Nd7 {[%clk 0:01:50.1]} 25. Rd1
{[%clk 0:01:17.9]} 25... Ne5 {[%clk 0:01:50.3]} 26. Rf6 {[%clk 0:01:16.3]} 26...
Rfd8 {[%clk 0:01:46.9]} 27. Rfd6 {[%clk 0:01:16]} 27... Rxd6 {[%clk 0:01:46.4]}
28. Rxd6 {[%clk 0:01:16.9]} 28... Bc6 {[%clk 0:01:42.1]} 29. Bc2 {[%clk
0:01:11.2]} 29... Kf8 {[%clk 0:01:42.2]} 30. b3 {[%clk 0:01:10.1]} 30... Ke7
{[%clk 0:01:42.4]} 31. Rd1 {[%clk 0:01:10.5]} 31... a5 {[%clk 0:01:43]} 32. Kf2
{[%clk 0:01:07.9]} 32... a4 {[%clk 0:01:43.5]} 33. Ke3 {[%clk 0:01:00.4]} 33...
axb3 {[%clk 0:01:21.4]} 34. axb3 {[%clk 0:00:57.5]} 34... Ra2 {[%clk 0:01:21.7]}
35. Rd2 {[%clk 0:00:50.4]} 35... Ra3 {[%clk 0:01:19.6]} 36. Kf2 {[%clk
0:00:49.7]} 36... Ra2 {[%clk 0:01:19.9]} 37. Ke3 {[%clk 0:00:45.3]} 37... Ba4
{[%clk 0:01:11.8]} 38. Rd5 {[%clk 0:00:22.6]} 38... Nxc4+ {[%clk 0:01:03.6]} 39.
bxc4 {[%clk 0:00:22.4]} 39... Bxc2 {[%clk 0:01:03.6]} 40. Rxc5 {[%clk
0:00:20.4]} 40... b3 {[%clk 0:01:04.1]} 41. Kd2 {[%clk 0:00:19.1]} 41... Bxe4+
{[%clk 0:00:56.6]} 42. Kc3 {[%clk 0:00:19.3]} 42... b2 {[%clk 0:00:57]} 43. Rc7+
{[%clk 0:00:12.7]} 43... Kf8 {[%clk 0:00:57.2]} 44. Nxe4 {[%clk 0:00:06.9]}
44... b1=Q {[%clk 0:00:57]} 45. Nd6 {[%clk 0:00:07.1]} 45... Qb2+ {[%clk
0:00:56.6]} 0-1

[Event "*** Titled Tuesday Blitz"]
[Site "Chess.com"]
[Date "2020.12.01"]
[Round "3"]
[White "underdogchss"]
[Black "LuckSlayeer"]
[Result "0-1"]
[WhiteElo "2367"]
[BlackElo "2579"]
[TimeControl "180+1"]
[EndTime "10:27:50 PST"]
[Termination "LuckSlayeer won on time"]

1. d4 {[%clk 0:03:00.9]} 1... Nf6 {[%clk 0:02:57.7]} 2. c4 {[%clk 0:03:00.7]}
2... e6 {[%clk 0:02:56.7]} 3. Nf3 {[%clk 0:02:56.9]} 3... Bb4+ {[%clk
0:02:56.6]} 4. Bd2 {[%clk 0:02:56]} 4... Qe7 {[%clk 0:02:56.9]} 5. g3 {[%clk
0:02:55.4]} 5... Bxd2+ {[%clk 0:02:55.7]} 6. Qxd2 {[%clk 0:02:55.2]} 6... Nc6
{[%clk 0:02:55]} 7. Nc3 {[%clk 0:02:54.4]} 7... d5 {[%clk 0:02:54.1]} 8. cxd5
{[%clk 0:02:42.8]} 8... exd5 {[%clk 0:02:55]} 9. Bg2 {[%clk 0:02:43.3]} 9... O-O
{[%clk 0:02:54.7]} 10. O-O {[%clk 0:02:42.9]} 10... Re8 {[%clk 0:02:53]} 11.
Rac1 {[%clk 0:02:39.4]} 11... Bg4 {[%clk 0:02:37.9]} 12. h3 {[%clk 0:02:26.2]}
12... Bh5 {[%clk 0:02:34.6]} 13. Nh4 {[%clk 0:02:19.4]} 13... Rad8 {[%clk
0:02:25.1]} 14. Nf5 {[%clk 0:02:05.2]} 14... Qd7 {[%clk 0:02:02.5]} 15. Ne3
{[%clk 0:01:41.5]} 15... Ne7 {[%clk 0:01:56.8]} 16. f4 {[%clk 0:01:34.2]} 16...
Bg6 {[%clk 0:01:43.2]} 17. g4 {[%clk 0:00:54.8]} 17... Ne4 {[%clk 0:01:25.5]}
18. Nxe4 {[%clk 0:00:47.1]} 18... Bxe4 {[%clk 0:01:26.4]} 19. Bxe4 {[%clk
0:00:45.2]} 19... dxe4 {[%clk 0:01:27.3]} 20. Rfd1 {[%clk 0:00:30.5]} 20... c6
{[%clk 0:01:08.9]} 21. Rc5 {[%clk 0:00:25]} 21... Ng6 {[%clk 0:00:57]} 22. Nf5
{[%clk 0:00:21.7]} 22... e3 {[%clk 0:00:52.1]} 23. Nxe3 {[%clk 0:00:11.2]} 23...
Nxf4 {[%clk 0:00:51.3]} 24. Kh2 {[%clk 0:00:02.7]} 24... Qc7 {[%clk 0:00:27]}
25. Kh1 {[%clk 0:00:02.5]} 25... Nxh3 {[%clk 0:00:25.7]} 26. Rf1 {[%clk
0:00:03.4]} 26... Qg3 {[%clk 0:00:24.3]} 27. Ng2 {[%clk 0:00:02.3]} 27... Nf2+
{[%clk 0:00:21.6]} 28. Rxf2 {[%clk 0:00:01.8]} 28... Qxf2 {[%clk 0:00:22.4]} 0-1

[Event "*** Titled Tuesday Blitz"]
[Site "Chess.com"]
[Date "2020.12.01"]
[Round "3"]
[White "valeriocarnicelli"]
[Black "SergeiAza"]
[Result "0-1"]
[WhiteElo "2571"]
[BlackElo "2836"]
[TimeControl "180+1"]
[EndTime "10:27:53 PST"]
[Termination "SergeiAza won by resignation"]

1. e4 {[%clk 0:03:00.9]} 1... c5 {[%clk 0:02:59.4]} 2. Nf3 {[%clk 0:03:00.9]}
2... Nc6 {[%clk 0:02:59.6]} 3. d4 {[%clk 0:03:01.2]} 3... cxd4 {[%clk
0:02:59.3]} 4. Nxd4 {[%clk 0:03:01.8]} 4... Qb6 {[%clk 0:02:58.1]} 5. Nb3 {[%clk
0:03:01.4]} 5... Nf6 {[%clk 0:02:58.7]} 6. Nc3 {[%clk 0:03:01.6]} 6... e6 {[%clk
0:02:58.2]} 7. Qe2 {[%clk 0:03:02]} 7... Bb4 {[%clk 0:02:56.3]} 8. Bd2 {[%clk
0:03:02.4]} 8... O-O {[%clk 0:02:55.2]} 9. a3 {[%clk 0:03:02.5]} 9... Be7 {[%clk
0:02:53]} 10. O-O-O {[%clk 0:03:02.1]} 10... d5 {[%clk 0:02:52.8]} 11. exd5
{[%clk 0:03:01.7]} 11... Nxd5 {[%clk 0:02:47.7]} 12. Nxd5 {[%clk 0:02:57]} 12...
exd5 {[%clk 0:02:47.4]} 13. Be3 {[%clk 0:02:47.2]} 13... Qc7 {[%clk 0:02:47.5]}
14. Nd4 {[%clk 0:02:41.4]} 14... Bf6 {[%clk 0:02:43.7]} 15. Kb1 {[%clk 0:02:38]}
15... Bxd4 {[%clk 0:02:05.1]} 16. Bxd4 {[%clk 0:02:37.8]} 16... Bf5 {[%clk
0:02:05.1]} 17. Be3 {[%clk 0:01:59.3]} 17... d4 {[%clk 0:01:46.5]} 18. Bxd4
{[%clk 0:01:47.3]} 18... Nxd4 {[%clk 0:01:42.8]} 19. Rxd4 {[%clk 0:01:48.2]}
19... Rac8 {[%clk 0:00:46.1]} 20. Rd2 {[%clk 0:01:39.8]} 20... Rfd8 {[%clk
0:00:45.4]} 21. Ka1 {[%clk 0:00:48.7]} 21... Rxd2 {[%clk 0:00:39.7]} 22. Qxd2
{[%clk 0:00:48.7]} 22... Qxc2 {[%clk 0:00:39.3]} 23. Qxc2 {[%clk 0:00:37.4]}
23... Rxc2 {[%clk 0:00:40.2]} 24. Bb5 {[%clk 0:00:26.2]} 24... Rxf2 {[%clk
0:00:39.8]} 25. Rd1 {[%clk 0:00:18.9]} 25... g5 {[%clk 0:00:38.4]} 26. Bd7
{[%clk 0:00:11.5]} 26... Bxd7 {[%clk 0:00:32.3]} 27. Rxd7 {[%clk 0:00:12.4]}
27... Rxg2 {[%clk 0:00:32.2]} 28. Rxb7 {[%clk 0:00:12.6]} 28... f5 {[%clk
0:00:31.5]} 29. Rxa7 {[%clk 0:00:10.4]} 29... f4 {[%clk 0:00:32.1]} 30. Ra5
{[%clk 0:00:09.1]} 30... f3 {[%clk 0:00:29.1]} 31. Rf5 {[%clk 0:00:09]} 31... g4
{[%clk 0:00:28.7]} 32. h3 {[%clk 0:00:07.3]} 32... gxh3 {[%clk 0:00:24.4]} 33.
Rxf3 {[%clk 0:00:07.5]} 33... h2 {[%clk 0:00:24.5]} 0-1

[Event "*** Titled Tuesday Blitz"]
[Site "Chess.com"]
[Date "2020.12.01"]
[Round "3"]
[White "Forantes"]
[Black "Witik"]
[Result "0-1"]
[WhiteElo "2385"]
[BlackElo "2618"]
[TimeControl "180+1"]
[EndTime "10:27:55 PST"]
[Termination "Witik won by resignation"]

1. Nf3 {[%clk 0:03:00.9]} 1... Nf6 {[%clk 0:02:58.9]} 2. g3 {[%clk 0:03:00.7]}
2... d5 {[%clk 0:02:59]} 3. Bg2 {[%clk 0:03:00.2]} 3... c6 {[%clk 0:02:59.5]} 4.
O-O {[%clk 0:02:59.5]} 4... Bg4 {[%clk 0:03:00.1]} 5. d4 {[%clk 0:02:59.8]} 5...
Nbd7 {[%clk 0:03:00]} 6. c4 {[%clk 0:02:59.8]} 6... e6 {[%clk 0:03:00]} 7. Nc3
{[%clk 0:02:59.5]} 7... Be7 {[%clk 0:03:00]} 8. Qb3 {[%clk 0:02:57.6]} 8... Qb6
{[%clk 0:02:59.2]} 9. Rd1 {[%clk 0:02:52.5]} 9... O-O {[%clk 0:02:58]} 10. Bg5
{[%clk 0:02:49.8]} 10... Rfe8 {[%clk 0:02:46.3]} 11. c5 {[%clk 0:02:46.4]} 11...
Qa6 {[%clk 0:02:45.9]} 12. h3 {[%clk 0:02:40.9]} 12... Bh5 {[%clk 0:02:43.4]}
13. Re1 {[%clk 0:02:20.9]} 13... b6 {[%clk 0:02:39.4]} 14. cxb6 {[%clk
0:02:20.1]} 14... axb6 {[%clk 0:02:40.3]} 15. e4 {[%clk 0:02:18.9]} 15... h6
{[%clk 0:02:26.1]} 16. Bd2 {[%clk 0:02:09.8]} 16... Bg6 {[%clk 0:02:20.5]} 17.
exd5 {[%clk 0:01:55]} 17... Nxd5 {[%clk 0:02:18.4]} 18. Nxd5 {[%clk 0:01:52.9]}
18... cxd5 {[%clk 0:02:18.4]} 19. Ne5 {[%clk 0:01:53.1]} 19... Nxe5 {[%clk
0:02:18]} 20. dxe5 {[%clk 0:01:40.5]} 20... Rec8 {[%clk 0:02:15.5]} 21. Rac1
{[%clk 0:01:37.7]} 21... Rxc1 {[%clk 0:02:09.7]} 22. Rxc1 {[%clk 0:01:32.8]}
22... Bc5 {[%clk 0:02:07]} 23. Be3 {[%clk 0:01:20.4]} 23... Qxa2 {[%clk
0:02:00]} 24. Qc3 {[%clk 0:00:58.9]} 24... Bxe3 {[%clk 0:01:49.8]} 25. fxe3
{[%clk 0:00:59.8]} 25... Kh7 {[%clk 0:01:42.8]} 26. Qd4 {[%clk 0:00:52.6]} 26...
Qb3 {[%clk 0:01:33.2]} 27. Rc6 {[%clk 0:00:24.9]} 27... b5 {[%clk 0:01:22]} 28.
Kh2 {[%clk 0:00:18.9]} 28... Ra2 {[%clk 0:01:18.5]} 29. Rc8 {[%clk 0:00:12.1]}
29... Qxb2 {[%clk 0:00:59]} 30. Qxb2 {[%clk 0:00:11.5]} 30... Rxb2 {[%clk
0:00:59.7]} 31. Rb8 {[%clk 0:00:11.8]} 31... Be4 {[%clk 0:00:59.1]} 32. h4
{[%clk 0:00:11.9]} 32... Rxg2+ {[%clk 0:00:58.2]} 33. Kh3 {[%clk 0:00:12.1]}
33... Rb2 {[%clk 0:00:57.7]} 34. h5 {[%clk 0:00:11.6]} 34... b4 {[%clk
0:00:57.3]} 35. Kg4 {[%clk 0:00:11.9]} 35... b3 {[%clk 0:00:56.9]} 36. Kh4
{[%clk 0:00:10.8]} 36... Rb1 {[%clk 0:00:55.9]} 37. Kg4 {[%clk 0:00:11.2]} 37...
b2 {[%clk 0:00:54.4]} 38. Kh4 {[%clk 0:00:11.6]} 38... Rh1+ {[%clk 0:00:53.8]}
39. Kg4 {[%clk 0:00:12.5]} 39... b1=Q {[%clk 0:00:53.5]} 40. Rh8+ {[%clk
0:00:12.8]} 40... Kxh8 {[%clk 0:00:47.9]} 41. Kf4 {[%clk 0:00:13.7]} 41... Qf1+
{[%clk 0:00:46.8]} 0-1

[Event "*** Titled Tuesday Blitz"]
[Site "Chess.com"]
[Date "2020.12.01"]
[Round "3"]
[White "Tpros"]
[Black "marciojor"]
[Result "1-0"]
[WhiteElo "2506"]
[BlackElo "2254"]
[TimeControl "180+1"]
[EndTime "10:27:58 PST"]
[Termination "Tpros won by checkmate"]

1. c4 {[%clk 0:03:00.9]} 1... e5 {[%clk 0:02:59.2]} 2. d3 {[%clk 0:03:01.8]}
2... Nf6 {[%clk 0:02:59]} 3. a3 {[%clk 0:03:02.7]} 3... d5 {[%clk 0:02:53]} 4.
cxd5 {[%clk 0:02:17.7]} 4... Nxd5 {[%clk 0:02:52.6]} 5. Nf3 {[%clk 0:02:16.5]}
5... Nc6 {[%clk 0:02:52.1]} 6. e4 {[%clk 0:02:13.9]} 6... Nde7 {[%clk
0:02:45.7]} 7. Be3 {[%clk 0:02:10]} 7... g6 {[%clk 0:02:44.4]} 8. d4 {[%clk
0:02:08.9]} 8... exd4 {[%clk 0:02:41.1]} 9. Nxd4 {[%clk 0:02:07.1]} 9... Bg7
{[%clk 0:02:40.2]} 10. Nxc6 {[%clk 0:02:06.5]} 10... Nxc6 {[%clk 0:02:39.3]} 11.
Qxd8+ {[%clk 0:02:05.4]} 11... Nxd8 {[%clk 0:02:39.3]} 12. Nc3 {[%clk
0:02:06.3]} 12... O-O {[%clk 0:02:35]} 13. Rc1 {[%clk 0:02:04.6]} 13... c6
{[%clk 0:02:31.9]} 14. Be2 {[%clk 0:02:03.5]} 14... Re8 {[%clk 0:02:31.4]} 15.
O-O {[%clk 0:01:56]} 15... b6 {[%clk 0:02:09]} 16. f3 {[%clk 0:01:53.3]} 16...
Bb7 {[%clk 0:02:03.5]} 17. Rfd1 {[%clk 0:01:52.6]} 17... Kf8 {[%clk 0:01:52.2]}
18. Rd7 {[%clk 0:01:49.5]} 18... Re7 {[%clk 0:01:50.6]} 19. Rcd1 {[%clk
0:01:49]} 19... Ke8 {[%clk 0:01:49.7]} 20. R7d2 {[%clk 0:01:46.7]} 20... Ne6
{[%clk 0:01:45.5]} 21. Kf2 {[%clk 0:01:45]} 21... Rd8 {[%clk 0:01:35.3]} 22.
Rxd8+ {[%clk 0:01:43.8]} 22... Nxd8 {[%clk 0:01:35.5]} 23. h4 {[%clk 0:01:40.5]}
23... h6 {[%clk 0:01:30.8]} 24. g4 {[%clk 0:01:39.4]} 24... Ne6 {[%clk
0:01:30.6]} 25. f4 {[%clk 0:01:25.5]} 25... Rd7 {[%clk 0:01:29.9]} 26. f5 {[%clk
0:01:09.3]} 26... Nd4 {[%clk 0:01:26]} 27. Bc4 {[%clk 0:01:00.8]} 27... h5
{[%clk 0:01:18.1]} 28. gxh5 {[%clk 0:00:40.3]} 28... gxh5 {[%clk 0:01:17.1]} 29.
Rg1 {[%clk 0:00:35.2]} 29... Bf6 {[%clk 0:01:14.8]} 30. Rg8+ {[%clk 0:00:34.4]}
30... Ke7 {[%clk 0:01:14.7]} 31. Bg5 {[%clk 0:00:31.1]} 31... b5 {[%clk
0:00:43.5]} 32. Ba2 {[%clk 0:00:24.3]} 32... a5 {[%clk 0:00:43.6]} 33. e5 {[%clk
0:00:22.6]} 33... Bxg5 {[%clk 0:00:43.3]} 34. hxg5 {[%clk 0:00:23.3]} 34... Nxf5
{[%clk 0:00:25.7]} 35. Ne4 {[%clk 0:00:18.9]} 35... Rd4 {[%clk 0:00:23]} 36. Nf6
{[%clk 0:00:18.3]} 36... Rd2+ {[%clk 0:00:21.6]} 37. Ke1 {[%clk 0:00:17.9]}
37... Rxb2 {[%clk 0:00:21.8]} 38. Re8# {[%clk 0:00:17.8]} 1-0

[Event "*** Titled Tuesday Blitz"]
[Site "Chess.com"]
[Date "2020.12.01"]
[Round "3"]
[White "Das_Virus_2020"]
[Black "nubair1198"]
[Result "0-1"]
[WhiteElo "2443"]
[BlackElo "2809"]
[TimeControl "180+1"]
[EndTime "10:27:59 PST"]
[Termination "nubair1198 won by resignation"]

1. e4 {[%clk 0:03:00.9]} 1... Nf6 {[%clk 0:02:55.9]} 2. Nc3 {[%clk 0:02:59.8]}
2... d5 {[%clk 0:02:54.7]} 3. exd5 {[%clk 0:02:59.5]} 3... Nxd5 {[%clk
0:02:55.6]} 4. Bc4 {[%clk 0:02:59.5]} 4... Nb6 {[%clk 0:02:54.7]} 5. Bb3 {[%clk
0:02:59.1]} 5... Nc6 {[%clk 0:02:55.2]} 6. d4 {[%clk 0:02:42.3]} 6... Nxd4
{[%clk 0:02:53.8]} 7. Be3 {[%clk 0:02:41.4]} 7... Nxb3 {[%clk 0:02:53.3]} 8.
Qxd8+ {[%clk 0:02:41.1]} 8... Kxd8 {[%clk 0:02:54.2]} 9. axb3 {[%clk 0:02:41.4]}
9... Bf5 {[%clk 0:02:44.6]} 10. O-O-O+ {[%clk 0:02:40.2]} 10... Kc8 {[%clk
0:02:39.3]} 11. Nf3 {[%clk 0:02:29.5]} 11... Bg4 {[%clk 0:02:39]} 12. Bf4 {[%clk
0:02:07.2]} 12... Bxf3 {[%clk 0:02:31.7]} 13. gxf3 {[%clk 0:02:08.1]} 13... e6
{[%clk 0:02:32.2]} 14. Rd3 {[%clk 0:02:02.6]} 14... Be7 {[%clk 0:02:29.2]} 15.
Rhd1 {[%clk 0:02:00.9]} 15... Rd8 {[%clk 0:02:29.7]} 16. Bg3 {[%clk 0:01:58.2]}
16... a6 {[%clk 0:02:20.9]} 17. Ne4 {[%clk 0:01:53.9]} 17... f5 {[%clk
0:02:17.5]} 18. Nc3 {[%clk 0:01:50.8]} 18... Rxd3 {[%clk 0:02:12.4]} 19. Rxd3
{[%clk 0:01:50.1]} 19... c6 {[%clk 0:02:12.8]} 20. Ne2 {[%clk 0:01:47.8]} 20...
Bg5+ {[%clk 0:02:10]} 21. Kb1 {[%clk 0:01:46]} 21... Bf6 {[%clk 0:01:01.1]} 22.
h4 {[%clk 0:00:59.5]} 22... e5 {[%clk 0:00:58.6]} 23. h5 {[%clk 0:00:57.8]}
23... Nd5 {[%clk 0:00:54.7]} 24. c4 {[%clk 0:00:55.9]} 24... Ne7 {[%clk
0:00:54.6]} 25. f4 {[%clk 0:00:40.3]} 25... e4 {[%clk 0:00:54.3]} 26. Re3 {[%clk
0:00:38.9]} 26... c5 {[%clk 0:00:51]} 27. f3 {[%clk 0:00:39]} 27... Bd4 {[%clk
0:00:51.4]} 28. Nxd4 {[%clk 0:00:37.7]} 28... cxd4 {[%clk 0:00:52.3]} 29. Re1
{[%clk 0:00:37.8]} 29... e3 {[%clk 0:00:48.2]} 30. Kc2 {[%clk 0:00:37.4]} 30...
Nc6 {[%clk 0:00:48.4]} 31. Kd3 {[%clk 0:00:29.5]} 31... b5 {[%clk 0:00:48.8]}
32. Bh4 {[%clk 0:00:27.2]} 32... Ra7 {[%clk 0:00:47.8]} 33. cxb5 {[%clk
0:00:21.1]} 33... axb5 {[%clk 0:00:48.7]} 34. Rc1 {[%clk 0:00:21.2]} 34... Rc7
{[%clk 0:00:49.1]} 35. Rg1 {[%clk 0:00:20.1]} 35... Rd7 {[%clk 0:00:48.2]} 36.
Be1 {[%clk 0:00:19.8]} 36... Kb7 {[%clk 0:00:47.9]} 37. Rg5 {[%clk 0:00:19.3]}
37... Rf7 {[%clk 0:00:46.9]} 38. Rg1 {[%clk 0:00:18.2]} 38... Kb6 {[%clk
0:00:47.3]} 39. Rg5 {[%clk 0:00:17.9]} 39... Kc5 {[%clk 0:00:47.3]} 40. Rg1
{[%clk 0:00:15.7]} 40... Re7 {[%clk 0:00:45.8]} 41. Rg5 {[%clk 0:00:15.4]} 41...
Nb4+ {[%clk 0:00:45.6]} 42. Bxb4+ {[%clk 0:00:15.1]} 42... Kxb4 {[%clk
0:00:46.5]} 43. h6 {[%clk 0:00:11.3]} 43... gxh6 {[%clk 0:00:45.9]} 0-1

[Event "*** Titled Tuesday Blitz"]
[Site "Chess.com"]
[Date "2020.12.01"]
[Round "3"]
[White "AlexSuv"]
[Black "Manukyan_Artak"]
[Result "0-1"]
[WhiteElo "2553"]
[BlackElo "2372"]
[TimeControl "180+1"]
[EndTime "10:28:02 PST"]
[Termination "Manukyan_Artak won by resignation"]

1. d4 {[%clk 0:03:00.9]} 1... Nf6 {[%clk 0:02:31.3]} 2. Nf3 {[%clk 0:03:00.9]}
2... d6 {[%clk 0:02:30.9]} 3. c4 {[%clk 0:02:57.6]} 3... g6 {[%clk 0:02:30.3]}
4. Nc3 {[%clk 0:02:57.8]} 4... Bg7 {[%clk 0:02:29.7]} 5. e4 {[%clk 0:02:57.7]}
5... O-O {[%clk 0:02:29.8]} 6. Be2 {[%clk 0:02:57.4]} 6... e5 {[%clk 0:02:28.8]}
7. Be3 {[%clk 0:02:57.3]} 7... Nc6 {[%clk 0:02:27.6]} 8. d5 {[%clk 0:02:57.1]}
8... Ne7 {[%clk 0:02:27.6]} 9. Nd2 {[%clk 0:02:57.7]} 9... c5 {[%clk 0:02:26.6]}
10. O-O {[%clk 0:02:43.1]} 10... h5 {[%clk 0:02:24.8]} 11. f3 {[%clk 0:02:41.2]}
11... h4 {[%clk 0:02:22.6]} 12. a4 {[%clk 0:02:40.1]} 12... Nh5 {[%clk
0:02:20.7]} 13. a5 {[%clk 0:02:35.1]} 13... a6 {[%clk 0:02:17.8]} 14. Na4 {[%clk
0:02:22.5]} 14... Kh7 {[%clk 0:02:13.5]} 15. Nb6 {[%clk 0:02:21.9]} 15... Rb8
{[%clk 0:02:12.9]} 16. Qe1 {[%clk 0:02:04.9]} 16... Ng8 {[%clk 0:02:10]} 17. Rf2
{[%clk 0:01:49.8]} 17... Bh6 {[%clk 0:02:04.4]} 18. Nf1 {[%clk 0:01:44.8]} 18...
f5 {[%clk 0:02:00.4]} 19. Nxc8 {[%clk 0:01:33.9]} 19... Rxc8 {[%clk 0:01:59.7]}
20. exf5 {[%clk 0:01:34.3]} 20... gxf5 {[%clk 0:01:57.1]} 21. Bd3 {[%clk
0:01:34.7]} 21... Nf4 {[%clk 0:01:43.8]} 22. Bxf4 {[%clk 0:01:19.8]} 22... Bxf4
{[%clk 0:01:41.8]} 23. g3 {[%clk 0:01:20.5]} 23... hxg3 {[%clk 0:01:41.5]} 24.
hxg3 {[%clk 0:01:20.6]} 24... Bh6 {[%clk 0:01:40.6]} 25. Rh2 {[%clk 0:01:13.2]}
25... Qg5 {[%clk 0:01:36.8]} 26. b4 {[%clk 0:01:03.8]} 26... Kg7 {[%clk
0:01:28.4]} 27. bxc5 {[%clk 0:01:01.2]} 27... Rxc5 {[%clk 0:01:28.1]} 28. Rb1
{[%clk 0:01:01.6]} 28... Rf7 {[%clk 0:01:24.4]} 29. Rb6 {[%clk 0:00:56.4]} 29...
Qe7 {[%clk 0:01:07.3]} 30. Ne3 {[%clk 0:00:49.1]} 30... Bxe3+ {[%clk 0:01:04.6]}
31. Qxe3 {[%clk 0:00:49]} 31... Rxa5 {[%clk 0:01:04.3]} 32. Rb1 {[%clk
0:00:31.1]} 32... Ra3 {[%clk 0:00:49]} 33. Qe2 {[%clk 0:00:25.3]} 33... Qg5
{[%clk 0:00:41.2]} 34. Kg2 {[%clk 0:00:20.6]} 34... Nf6 {[%clk 0:00:35.7]} 35.
Rb2 {[%clk 0:00:12.6]} 35... Nh5 {[%clk 0:00:33.8]} 36. Rxh5 {[%clk 0:00:02.8]}
36... Qxh5 {[%clk 0:00:34.7]} 37. Bc2 {[%clk 0:00:02.1]} 37... e4 {[%clk
0:00:31.3]} 38. fxe4 {[%clk 0:00:02.3]} 38... Qxe2+ {[%clk 0:00:30.7]} 0-1